bitfinex/quotes_SOLUSD_20241022
["timestamp","ask_amount","ask_price","bid_price","bid_amount"]
[1729601459709,29.777884,166.64,166.53,20.0]
[1729601460398,23.776884,166.64,166.53,20.0]
[1729601460603,23.776884,166.65,166.53,20.0]
[1729601460800,29.777684,166.65,166.53,20.0]
[1729601461737,23.776884,166.66,166.53,20.0]
[1729601461917,6.0019,166.62,166.53,20.0]
[1729601463409,23.776884,166.64,166.53,20.0]
[1729601463606,6.0011,166.64,166.53,20.0]
[1729601464411,6.0011,166.64,166.53,37.30610672]
[1729601466819,20.0,166.65,166.53,20.0]
[1729601467015,6.0009,166.64,166.53,20.0]
[1729601467226,6.0019,166.62,166.53,20.0]
[1729601468819,20.0,166.62,166.49,6.2973]
[1729601469320,38.782584,166.61,166.49,6.2973]
[1729601469513,20.0,166.62,166.47,15.7058]
[1729601469514,23.776884,166.59,166.47,15.7058]
[1729601469718,6.004,166.56,166.47,15.7058]
[1729601470511,23.776884,166.55,166.45,6.2973]
[1729601470715,23.776884,166.53,166.45,6.2973]
[1729601470907,23.776884,166.53,166.43,33.01190672]
[1729601470908,29.781984,166.53,166.43,39.28341646]
[1729601471820,29.781984,166.53,166.44,20.0]
[1729601472196,23.776884,166.53,166.44,20.0]
[1729601475908,23.776884,166.54,166.44,20.0]
[1729601476130,29.781384,166.54,166.44,20.0]
[1729601476928,23.776884,166.54,166.44,20.0]
[1729601477132,16.4437,166.59,166.46,20.0]
[1729601477334,16.4437,166.59,166.48,20.0]
[1729601477906,6.5637,166.6,166.5,20.0]
[1729601479136,23.776884,166.59,166.5,20.0]
[1729601483915,15.8611,166.63,166.5,20.0]
[1729601484119,12.5912,166.65,166.54,17.30610672]
[1729601484423,12.5912,166.65,166.5,20.0]
[1729601484424,6.5903,166.65,166.5,20.0]
[1729601484729,6.0022,166.61,166.5,20.0]
[1729601484924,6.5903,166.65,166.5,20.0]
[1729601485128,6.0025,166.6,166.5,20.0]
[1729601485321,23.776884,166.59,166.5,20.0]
[1729601486041,29.779884,166.59,166.5,20.0]
[1729601486918,29.779884,166.59,166.49,23.78520672]
[1729601487934,23.776884,166.53,166.42,6.2049]
[1729601488329,23.776884,166.51,166.42,6.2049]
[1729601488515,23.776884,166.51,166.41,15.0984]
[1729601488516,23.776884,166.48,166.41,15.0984]
[1729601488719,23.776884,166.48,166.38,6.2049]
[1729601489218,23.776884,166.49,166.38,6.2049]
[1729601489615,23.776884,166.5,166.38,6.2049]
[1729601489837,23.776884,166.5,166.32,25.14272035]
[1729601489838,23.776884,166.44,166.32,40.50626916]
[1729601490044,6.0074,166.46,166.33,70.0]
[1729601490224,23.776884,166.47,166.33,70.0]
[1729601490625,29.784284,166.47,166.33,70.0]
[1729601491220,23.776884,166.47,166.32,39.46130672]
[1729601491424,23.776884,166.45,166.32,39.46130672]
[1729601491642,23.876884,166.47,166.32,22.1552]
[1729601491821,29.786684,166.4,166.32,22.1552]
[1729601492022,23.776884,166.4,166.32,22.1552]
[1729601493445,6.25,166.48,166.32,22.1552]
[1729601493446,29.784984,166.44,166.33,20.0]
[1729601494419,23.776884,166.44,166.28,6.27597605]
[1729601494626,6.25,166.48,166.28,6.27597605]
[1729601494627,23.776884,166.37,166.28,6.27597605]
[1729601494833,23.776884,166.37,166.24,23.88710672]
[1729601495540,23.776884,166.38,166.26,70.0]
[1729601495743,23.776884,166.38,166.27,20.0]
[1729601496639,23.776884,166.38,166.27,37.30610672]
[1729601496839,23.776884,166.41,166.29,20.0]
[1729601497046,29.786084,166.41,166.29,20.0]
[1729601498045,6.25,166.48,166.31,20.0]
[1729601498249,6.25,166.48,166.33,20.0]
[1729601498651,6.0083,166.44,166.33,20.0]
[1729601499338,23.776884,166.43,166.33,20.0]
[1729601499751,29.785384,166.43,166.33,20.0]
[1729601500163,23.776884,166.43,166.33,20.0]
[1729601500329,23.776884,166.43,166.33,26.6227]
[1729601500825,23.776884,166.43,166.35,20.608429]
[1729601501243,6.15,166.48,166.35,20.608429]
[1729601501951,6.0073,166.47,166.35,20.608429]
[1729601502958,29.784284,166.46,166.35,20.608429]
[1729601503153,23.776884,166.47,166.35,20.608429]
[1729601503328,23.776884,166.44,166.35,0.608429]
[1729601503838,23.776884,166.4,166.35,0.608429]
[1729601504038,24.176884,166.4,166.35,0.608429]
[1729601505450,0.4,166.4,166.35,0.608429]
[1729601505760,6.01,166.39,166.35,0.608429]
[1729601505960,6.4096,166.4,166.35,0.608429]
[1729601506249,0.4,166.4,166.35,0.608429]
[1729601506433,23.776884,166.38,166.35,0.608429]
[1729601506630,29.787484,166.38,166.35,0.608429]
[1729601506859,23.776884,166.38,166.35,0.608429]
[1729601507032,23.776884,166.36,166.35,0.608429]
[1729601508141,29.787884,166.36,166.35,0.608429]
[1729601508341,23.776884,166.36,166.35,0.608429]
[1729601508938,23.776884,166.38,166.35,0.608429]
[1729601509348,24.176884,166.4,166.35,0.608429]
[1729601509556,0.19993659,166.47,166.35,0.608429]
[1729601509557,43.64897227,166.54,166.35,0.608429]
[1729601509759,7.65897227,166.54,166.35,0.608429]
[1729601510353,18.0,166.53,166.35,0.808429]
[1729601510562,6.0077,166.46,166.35,0.808429]
[1729601510734,6.0071,166.47,166.36,0.1]
[1729601510936,15.0149,166.51,166.37,0.1]
[1729601511143,6.0082,166.44,166.36,15.3119]
[1729601513848,6.0125,166.47,166.35,0.608429]
[1729601514163,6.0088,166.43,166.35,0.608429]
[1729601514364,6.0088,166.43,166.35,0.708429]
[1729601516758,6.0088,166.43,166.35,0.608429]
[1729601517048,6.0088,166.43,166.35,0.708429]
[1729601517559,23.776884,166.46,166.35,0.608429]
[1729601517762,6.0095,166.41,166.35,0.608429]
[1729601518468,23.776884,166.44,166.35,0.608429]
[1729601518761,6.0088,166.43,166.35,0.608429]
[1729601519949,6.0084,166.44,166.35,0.608429]
[1729601520655,20.0,166.46,166.37,0.1]
[1729601520876,6.0072,166.47,166.37,0.1]
[1729601521441,6.0075,166.46,166.37,0.1]
[1729601523469,20.0,166.47,166.37,0.1]
[1729601523661,6.0072,166.47,166.38,0.1]
[1729601523859,23.776884,166.5,166.39,0.1]
[1729601524167,6.0066,166.49,166.39,6.8199]
[1729601524373,15.1626,166.52,166.42,0.1]
[1729601524670,21.1679,166.52,166.43,0.1]
[1729601524971,21.1679,166.52,166.42,0.2]
[1729601525150,21.1679,166.52,166.43,0.1]
[1729601525351,6.0053,166.52,166.43,0.1]
[1729601526279,43.776884,166.54,166.43,0.2]
[1729601527447,6.1881,166.55,166.43,0.1]
[1729601527652,6.0045,166.55,166.46,0.1]
[1729601528746,6.0045,166.55,166.45,0.2]
[1729601528973,6.0055,166.52,166.43,0.1]
[1729601529350,6.0055,166.52,166.42,23.876884]
[1729601529351,15.5123,166.56,166.45,0.1]
[1729601529548,15.5123,166.56,166.46,0.2]
[1729601529771,21.5161,166.56,166.46,0.2]
[1729601530070,6.0038,166.56,166.47,0.1]
[1729601530244,6.0038,166.56,166.46,0.2]
[1729601530451,6.0041,166.56,166.47,0.1]
[1729601531073,21.8048,166.6,166.49,0.1]
[1729601531368,10.35684319,166.59,166.49,0.2]
[1729601531560,10.35714319,166.58,166.49,0.2]
[1729601531873,4.35404319,166.57,166.49,0.2]
[1729601532054,4.35404319,166.57,166.5,0.1]
[1729601532263,4.35404319,166.56,166.5,0.1]
[1729601532449,4.35404319,166.55,166.5,0.1]
[1729601532768,4.3657538,166.54,166.5,0.1]
[1729601532950,6.0028,166.59,166.5,0.1]
[1729601533276,4.36558124,166.58,166.5,0.1]
[1729601533572,4.36558124,166.57,166.5,0.1]
[1729601533765,4.36558124,166.56,166.51,0.1]
[1729601533968,4.36558124,166.55,166.51,0.1]
[1729601534272,4.36558124,166.54,166.51,0.1]
[1729601534473,4.36558124,166.53,166.51,0.1]
[1729601534675,4.36558124,166.58,166.51,0.1]
[1729601534850,4.36558124,166.57,166.51,0.1]
[1729601535172,4.36558124,166.56,166.51,0.1]
[1729601535362,4.36558124,166.55,166.51,0.1]
[1729601535561,4.36558124,166.54,166.5,15.9606]
[1729601535762,4.36558124,166.53,166.5,15.8606]
[1729601535968,4.36558124,166.52,166.48,6.4843]
[1729601536153,4.36558124,166.51,166.48,6.4843]
[1729601536349,6.0038,166.56,166.39,15.9606]
[1729601536350,4.36558124,166.5,166.44,6.8434]
[1729601536667,4.36558124,166.49,166.45,0.1]
[1729601536868,16.5669,166.57,166.48,0.2]
[1729601537059,4.38446584,166.56,166.48,0.2]
[1729601537254,4.38446584,166.55,166.48,0.2]
[1729601537463,4.38446584,166.54,166.48,0.2]
[1729601537658,4.38446584,166.53,166.48,0.2]
[1729601537980,4.38446584,166.52,166.47,0.2]
[1729601538280,4.38446584,166.51,166.47,0.2]
[1729601538462,4.38446584,166.51,166.44,76.6434]
[1729601538463,4.38446584,166.5,166.48,0.2]
[1729601538663,4.38446584,166.49,166.48,0.2]
[1729601538976,6.0036,166.57,166.48,0.2]
[1729601539162,4.38627931,166.56,166.48,0.2]
[1729601539362,4.38627931,166.55,166.48,0.2]
[1729601539562,4.38627931,166.54,166.48,0.2]
[1729601539781,4.38627931,166.53,166.49,0.2]
[1729601539954,4.38627931,166.52,166.49,0.2]
[1729601540155,4.38627931,166.51,166.49,0.2]
[1729601540357,4.38627931,166.5,166.49,0.2]
[1729601540972,4.3859435,166.5,166.49,0.2]
[1729601541186,8.771887,166.5,166.49,0.2]
[1729601541794,8.771887,166.5,166.42,15.6979]
[1729601541982,4.3859435,166.49,166.42,15.5979]
[1729601542280,4.3859435,166.48,166.42,15.5979]
[1729601542463,4.3859435,166.5,166.43,0.1]
[1729601542665,4.38622381,166.49,166.42,15.5979]
[1729601542856,4.3859435,166.5,166.42,15.5979]
[1729601542857,4.38622381,166.48,166.42,15.5979]
[1729601543063,4.38622381,166.47,166.42,15.6979]
[1729601543271,4.3859435,166.5,166.42,15.6979]
[1729601543573,4.38638219,166.49,166.42,15.6979]
[1729601543770,4.38638219,166.48,166.42,15.5979]
[1729601543977,4.38638219,166.47,166.39,6.4879]
[1729601544181,4.3859435,166.5,166.41,0.1]
[1729601544182,6.0067,166.48,166.41,0.1]
[1729601544353,4.38695771,166.47,166.41,0.1]
[1729601544557,10.3921435,166.5,166.41,0.1]
[1729601544752,10.3921435,166.5,166.37,15.5686]
[1729601544753,23.776884,166.48,166.37,15.5686]
[1729601544981,6.0081,166.45,166.37,15.4686]
[1729601545155,6.0082,166.44,166.37,15.4686]
[1729601545662,4.3859435,166.5,166.38,0.2]
[1729601545866,20.0,166.48,166.39,0.1]
[1729601546075,4.38607073,166.47,166.4,0.1]
[1729601546286,4.38607073,166.46,166.4,0.1]
[1729601546463,6.0067,166.48,166.4,0.1]
[1729601546665,4.38668362,166.47,166.4,0.1]
[1729601546863,6.0067,166.48,166.4,0.1]
[1729601547076,4.38684813,166.47,166.4,0.1]
[1729601547275,4.3859435,166.5,166.37,15.4686]
[1729601547276,4.3859435,166.5,166.42,0.2]
[1729601547464,4.38702969,166.49,166.42,6.55]
[1729601547669,4.38723396,166.48,166.42,6.55]
[1729601547879,4.38723396,166.47,166.42,6.55]
[1729601548080,4.3859435,166.5,166.42,6.55]
[1729601548282,4.38738731,166.49,166.42,6.55]
[1729601548481,4.38738731,166.48,166.42,6.55]
[1729601548789,4.38738731,166.47,166.42,6.65]
[1729601548986,10.3919435,166.5,166.42,6.65]
[1729601549185,4.38722071,166.49,166.42,6.65]
[1729601549490,4.38722071,166.48,166.42,6.65]
[1729601549685,4.38722071,166.47,166.42,6.75]
[1729601549893,6.0056,166.51,166.42,6.65]
[1729601550070,4.38767492,166.5,166.42,6.75]
[1729601550272,4.38767492,166.49,166.42,6.75]
[1729601550483,4.38767492,166.48,166.43,0.2]
[1729601550681,4.38767492,166.47,166.43,0.2]
[1729601550874,21.72,166.53,166.43,0.2]
[1729601551074,4.38702542,166.52,166.43,0.2]
[1729601551269,4.38702542,166.51,166.45,0.1]
[1729601551490,4.38702542,166.5,166.46,0.2]
[1729601551682,4.38702542,166.49,166.47,0.1]
[1729601551993,4.38702542,166.48,166.47,0.2]
[1729601552491,6.0035,166.57,166.48,0.1]
[1729601552666,4.38051586,166.56,166.48,0.1]
[1729601552872,4.38051586,166.55,166.48,0.1]
[1729601553080,4.38051586,166.54,166.48,0.1]
[1729601553298,4.38051586,166.53,166.49,0.1]
[1729601553486,4.38051586,166.52,166.49,0.1]
[1729601553787,6.2018,166.66,166.53,0.2]
[1729601553970,6.0012,166.64,166.54,0.1]
[1729601554171,10.38261824,166.63,166.54,0.1]
[1729601554398,6.2018,166.66,166.54,0.1]
[1729601554399,4.38131824,166.62,166.55,0.1]
[1729601554694,6.0006,166.65,166.55,0.2]
[1729601554900,4.38149367,166.64,166.57,0.2]
[1729601555083,4.38149367,166.63,166.58,0.1]
[1729601555276,4.38149367,166.62,166.57,0.2]
[1729601555477,4.38149367,166.61,166.58,0.1]
[1729601555680,4.38149367,166.6,166.57,0.2]
[1729601555879,4.38149367,166.59,166.55,0.1]
[1729601556092,4.38149367,166.58,166.53,16.025]
[1729601556395,4.38149367,166.57,166.54,0.1]
[1729601556592,4.38149367,166.56,166.54,0.2]
[1729601556779,4.38149367,166.55,166.54,0.1]
[1729601556980,4.38149367,166.55,166.53,15.925]
[1729601557197,4.38149367,166.54,166.53,15.825]
[1729601557889,4.38149367,166.54,166.53,15.925]
[1729601558087,4.38149367,166.54,166.53,39.801884]
[1729601558387,4.37767172,166.54,166.53,39.801884]
[1729601559388,4.37767172,166.54,166.53,39.701884]
[1729601559591,4.37767172,166.54,166.53,39.801884]
[1729601560002,15.7489,166.67,166.6,0.1]
[1729601560293,5.9994,166.69,166.61,0.1]
[1729601560888,6.6335,166.7,166.63,0.1]
[1729601561076,15.3805,166.71,166.64,0.1]
[1729601561284,6.5442,166.74,166.64,0.1]
[1729601561472,12.5416,166.74,166.63,0.1]
[1729601561671,12.5416,166.74,166.62,39.603284]
[1729601561900,12.5416,166.74,166.63,0.1]
[1729601562190,6.5442,166.74,166.65,0.1]
[1729601562388,5.9978,166.73,166.65,0.1]
[1729601564080,5.9989,166.7,166.61,6.762]
[1729601564284,5.9989,166.7,166.61,6.662]
[1729601565877,6.0001,166.67,166.58,16.154]
[1729601566182,6.0001,166.67,166.58,0.2]
[1729601566585,6.0001,166.67,166.59,0.1]
[1729601566898,6.0001,166.67,166.58,0.2]
[1729601567095,6.0001,166.67,166.59,0.1]
[1729601567477,6.0001,166.67,166.6,0.1]
[1729601568299,6.0001,166.67,166.59,0.1]
[1729601568485,6.0001,166.67,166.6,0.1]
[1729601571497,58.772084,166.72,166.62,0.1]
[1729601571685,20.0,166.69,166.62,0.1]
[1729601572081,5.999,166.7,166.62,0.1]
[1729601572484,25.9985,166.71,166.63,0.1]
[1729601572700,5.9996,166.68,166.59,0.1]
[1729601572887,20.0,166.71,166.57,6.706]
[1729601573090,6.0009,166.64,166.57,6.706]
[1729601573291,6.0009,166.64,166.58,0.1]
[1729601573496,6.0006,166.65,166.58,0.1]
[1729601575701,5.9991,166.69,166.59,0.1]
[1729601575910,5.9997,166.68,166.6,0.1]
[1729601576398,5.9997,166.68,166.61,0.1]
[1729601576707,5.9992,166.69,166.61,0.1]
[1729601576882,5.9996,166.68,166.6,0.1]
[1729601579183,6.0005,166.66,166.57,6.806]
[1729601579384,20.0,166.67,166.54,16.1349]
[1729601579705,6.0021,166.61,166.54,15.9349]
[1729601580015,6.0021,166.61,166.54,16.0349]
[1729601580789,6.0027,166.6,166.54,15.9349]
[1729601580997,6.0021,166.61,166.54,15.9349]
[1729601581291,43.776884,166.67,166.53,6.1026]
[1729601581511,6.0002,166.66,166.53,0.1]
[1729601581684,20.0,166.64,166.55,0.1]
[1729601581889,6.0017,166.62,166.55,0.1]
[1729601583394,6.0017,166.62,166.55,0.2]
[1729601584518,6.0017,166.62,166.55,0.1]
[1729601584814,6.0017,166.62,166.55,0.2]
[1729601585012,6.0017,166.62,166.54,0.1]
[1729601585595,6.0017,166.62,166.55,0.1]
[1729601586294,6.0017,166.62,166.55,0.2]
[1729601586497,6.0017,166.62,166.55,0.1]
[1729601586819,6.0002,166.66,166.59,0.1]
[1729601587489,5.9997,166.68,166.61,0.1]
[1729601587689,5.9995,166.68,166.61,0.2]
[1729601587988,6.0005,166.66,166.59,0.2]
[1729601588303,6.0,166.67,166.6,0.1]
[1729601588500,6.0,166.67,166.59,0.1]
[1729601588696,23.776884,166.68,166.59,0.1]
[1729601588903,6.0006,166.65,166.59,0.1]
[1729601590702,20.0,166.69,166.59,0.1]
[1729601590907,6.0003,166.66,166.59,0.1]
[1729601591213,5.9995,166.68,166.59,0.2]
[1729601591429,20.0,166.69,166.59,0.2]
[1729601591721,5.9995,166.68,166.6,0.1]
[1729601592208,5.9999,166.67,166.6,0.2]
[1729601592413,6.0011,166.64,166.59,0.1]
[1729601593514,23.776884,166.67,166.59,0.1]
[1729601593690,6.0006,166.65,166.59,0.1]
[1729601594797,5.9998,166.68,166.6,0.1]
[1729601595021,6.0002,166.67,166.59,0.1]
[1729601595321,6.0002,166.67,166.6,0.1]
[1729601596322,6.0002,166.67,166.6,0.2]
[1729601600014,6.0002,166.67,166.59,0.1]
[1729601600216,6.0002,166.67,166.6,0.1]
[1729601600415,6.0002,166.67,166.6,0.2]
[1729601600826,6.0002,166.67,166.6,0.1]
[1729601601014,14.9964,166.71,166.55,43.19914353]
[1729601601015,5.9984,166.71,166.63,0.1]
[1729601601208,6.2463,166.73,166.62,6.5383]
[1729601601518,15.5533,166.75,166.64,0.1]
[1729601601519,5.9984,166.71,166.64,0.1]
[1729601601834,5.9992,166.69,166.62,6.4383]
[1729601602406,5.9992,166.69,166.63,0.2]
[1729601602823,20.0,166.73,166.63,0.2]
[1729601603026,5.9988,166.7,166.63,0.2]
[1729601604208,5.9988,166.7,166.63,0.1]
[1729601604518,5.9995,166.68,166.62,6.5383]
[1729601604734,5.9991,166.69,166.62,6.5383]
[1729601609224,23.776884,166.73,166.62,6.5383]
[1729601609528,5.9988,166.7,166.63,0.1]
[1729601610622,14.9937,166.74,166.63,0.1]
[1729601610623,20.0,166.74,166.65,0.1]
[1729601610830,20.0,166.74,166.65,0.2]
[1729601610831,5.9977,166.73,166.65,0.2]
[1729601612105,5.9981,166.72,166.65,0.2]
[1729601612927,5.9975,166.74,166.67,0.1]
[1729601613224,5.9975,166.74,166.67,0.2]
[1729601613629,20.0,166.76,166.68,0.1]
[1729601613823,5.9969,166.76,166.68,0.2]
[1729601614030,6.2999,166.78,166.69,0.1]
[1729601614031,20.0,166.77,166.69,0.1]
[1729601614337,5.997,166.75,166.69,0.1]
[1729601615433,5.9961,166.78,166.71,0.1]
[1729601615729,5.9962,166.78,166.71,0.1]
[1729601616226,21.87,166.79,166.71,0.1]
[1729601616406,21.87,166.79,166.7,0.1]
[1729601616407,15.8742,166.79,166.7,0.2]
[1729601616608,15.8742,166.79,166.72,0.1]
[1729601616804,20.0,166.81,166.72,0.2]
[1729601617005,20.0,166.81,166.73,0.1]
[1729601617006,5.9967,166.76,166.73,0.1]
[1729601617232,20.0,166.81,166.73,0.1]
[1729601617623,5.9952,166.8,166.73,0.1]
[1729601617823,5.9956,166.79,166.73,0.1]
[1729601618017,21.0847,166.82,166.72,0.1]
[1729601618018,5.9953,166.8,166.75,0.1]
[1729601618528,5.9953,166.8,166.74,0.1]
[1729601618724,34.9857,166.83,166.72,0.2]
[1729601618928,5.9959,166.78,166.72,0.1]
[1729601619133,5.9959,166.78,166.71,22.7272]
[1729601620030,5.9959,166.78,166.72,0.1]
[1729601620626,5.9969,166.76,166.7,0.1]
[1729601620938,5.9969,166.76,166.71,0.1]
[1729601623333,15.6902,166.84,166.71,0.1]
[1729601623632,5.997,166.75,166.7,0.1]
[1729601624019,29.9706,166.83,166.7,0.1]
[1729601624216,5.9967,166.76,166.7,0.2]
[1729601624434,5.9967,166.76,166.7,0.1]
[1729601624616,58.765984,166.79,166.7,0.1]
[1729601625025,5.9971,166.75,166.7,0.1]
[1729601625426,49.915984,166.79,166.68,0.1]
[1729601625624,5.9986,166.71,166.66,0.1]
[1729601626427,5.9986,166.71,166.66,0.2]
[1729601626619,5.9961,166.78,166.71,0.1]
[1729601627630,5.9961,166.78,166.72,0.1]
[1729601628534,5.9963,166.77,166.71,0.1]
[1729601628724,5.9963,166.77,166.72,0.1]
[1729601629119,5.996,166.78,166.72,0.1]
[1729601629709,5.9952,166.8,166.74,0.1]
[1729601630737,5.9952,166.8,166.73,0.1]
[1729601631540,5.9952,166.8,166.75,0.1]
[1729601632039,20.0,166.8,166.71,0.1]
[1729601632227,5.9961,166.78,166.72,0.1]
[1729601632424,5.9961,166.78,166.72,0.2]
[1729601634540,25.9959,166.78,166.68,0.1]
[1729601634835,5.9974,166.74,166.69,0.1]
[1729601635145,5.9974,166.74,166.68,0.2]
[1729601635519,5.9974,166.74,166.69,0.1]
[1729601636141,5.9974,166.74,166.68,0.2]
[1729601638950,20.0,166.78,166.67,0.1]
[1729601639235,5.9981,166.72,166.67,0.1]
[1729601639438,5.9974,166.74,166.68,0.2]
[1729601639623,20.0,166.78,166.7,0.1]
[1729601640026,5.9967,166.76,166.7,0.1]
[1729601640220,5.9963,166.77,166.71,0.1]
[1729601640414,5.9963,166.77,166.72,0.1]
[1729601640619,5.9963,166.77,166.71,0.2]
[1729601641541,5.9963,166.77,166.71,0.1]
[1729601641741,5.9963,166.77,166.71,0.2]
[1729601642446,20.0,166.79,166.69,0.2]
[1729601642739,20.0,166.79,166.68,0.2]
[1729601642923,5.9972,166.75,166.68,0.2]
[1729601643241,5.9972,166.75,166.67,23.776884]
[1729601643242,5.9972,166.75,166.69,0.2]
[1729601643542,31.4919,166.83,166.73,0.2]
[1729601643919,5.9958,166.79,166.71,0.2]
[1729601644139,31.4919,166.83,166.7,0.2]
[1729601644140,20.9806,166.82,166.7,0.2]
[1729601644324,5.9965,166.77,166.7,0.2]
[1729601644531,5.9965,166.77,166.71,0.1]
[1729601644745,5.9965,166.77,166.71,0.2]
[1729601648531,43.776884,166.74,166.66,22.983]
[1729601648735,43.776884,166.74,166.63,5.98503569]
[1729601648736,5.9992,166.69,166.62,0.1]
[1729601648949,43.776884,166.72,166.61,23.2814]
[1729601649245,5.9998,166.68,166.63,0.2]
[1729601649546,5.9992,166.69,166.63,0.2]
[1729601649921,43.776884,166.72,166.63,0.2]
[1729601650122,5.9984,166.71,166.64,0.1]
[1729601650522,5.9984,166.71,166.58,70.0]
[1729601650523,23.776884,166.7,166.57,23.1814]
[1729601650723,6.0013,166.63,166.57,23.0814]
[1729601651330,6.0018,166.62,166.56,0.1]
[1729601652038,6.0013,166.63,166.56,0.2]
[1729601652348,6.001,166.64,166.57,0.2]
[1729601652535,6.001,166.64,166.57,0.1]
[1729601652844,6.001,166.64,166.57,0.2]
[1729601654436,6.001,166.64,166.57,0.1]
[1729601654638,6.001,166.64,166.57,0.2]
[1729601655851,6.001,166.64,166.58,0.1]
[1729601657031,6.0002,166.66,166.59,0.2]
[1729601657356,5.9995,166.68,166.61,0.2]
[1729601660443,5.9984,166.71,166.64,0.2]
[1729601660658,15.4587,166.72,166.65,0.1]
[1729601660854,5.998,166.73,166.66,0.1]
[1729601661248,5.9981,166.72,166.65,0.2]
[1729601661435,5.9981,166.72,166.65,0.1]
[1729601661639,5.9981,166.72,166.65,0.2]
[1729601662657,5.9981,166.72,166.66,0.1]
[1729601662836,5.9977,166.73,166.66,0.2]
[1729601663043,16.3414,166.76,166.68,0.2]
[1729601663262,5.997,166.75,166.69,0.1]
[1729601663557,5.997,166.75,166.69,0.2]
[1729601663750,5.9964,166.77,166.7,0.1]
[1729601663941,5.9964,166.77,166.7,0.2]
[1729601663942,5.9965,166.77,166.7,0.2]
[1729601664761,5.9965,166.77,166.71,0.1]
[1729601665262,5.9967,166.76,166.69,0.1]
[1729601665441,5.9976,166.74,166.68,0.1]
[1729601665640,5.9976,166.74,166.69,0.1]
[1729601666048,5.9976,166.74,166.67,0.1]
[1729601666237,43.776884,166.77,166.67,0.1]
[1729601666451,5.9976,166.74,166.66,0.2]
[1729601666649,5.9976,166.74,166.67,0.1]
[1729601666877,5.9976,166.74,166.68,0.1]
[1729601667075,5.997,166.75,166.68,0.2]
[1729601669743,5.997,166.75,166.68,0.1]
[1729601669940,5.997,166.75,166.68,0.2]
[1729601670650,5.997,166.75,166.69,0.1]
[1729601671742,5.997,166.75,166.68,0.2]
[1729601672548,34.9907,166.77,166.66,0.1]
[1729601672863,5.9984,166.71,166.66,0.1]
[1729601673170,20.0,166.73,166.65,0.2]
[1729601673368,20.0,166.75,166.65,0.2]
[1729601673658,16.2276,166.73,166.63,0.1]
[1729601673859,20.0,166.72,166.63,0.1]
[1729601674052,5.9984,166.71,166.64,0.1]
[1729601674248,5.999,166.7,166.64,0.1]
[1729601676370,5.999,166.7,166.63,0.2]
[1729601676671,5.999,166.7,166.64,0.1]
[1729601676856,5.999,166.7,166.63,0.2]
[1729601677354,5.9952,166.8,166.77,0.1]
[1729601677559,16.2862,166.87,166.77,0.1]
[1729601677754,5.9939,166.84,166.77,0.1]
[1729601678958,29.769884,166.86,166.77,0.1]
[1729601679156,23.776884,166.84,166.75,0.2]